bitfinex/quotes_ETHUSD_20250223
["timestamp","ask_amount","ask_price","bid_price","bid_amount"]
[1740292765837,12.15691531,2794.2,2794.1,1e-05]
[1740292766139,12.33741307,2794.2,2794.1,1e-05]
[1740292766306,12.15691531,2794.2,2794.1,1e-05]
[1740292766706,3.58037,2793.0,2792.9,0.77631]
[1740292767310,0.1365589,2793.0,2792.9,4.35681]
[1740292767523,0.1365589,2793.0,2792.9,0.77631]
[1740292767836,3.58034,2793.1,2792.9,0.77631]
[1740292768132,0.13622034,2793.0,2792.9,0.77631]
[1740292768323,0.13622034,2793.0,2792.9,1.153941]
[1740292768714,3.58008,2793.3,2792.9,1.153941]
[1740292768901,0.13627797,2793.0,2792.9,1.153941]
[1740292769102,3.57989,2793.4,2792.9,3.958121]
[1740292769303,0.13627797,2793.3,2792.9,3.958121]
[1740292769504,3.57994,2793.4,2793.0,0.3958121]
[1740292769714,0.13627797,2793.3,2793.1,0.8263]
[1740292771102,3.57954,2793.7,2793.1,4.40653]
[1740292771304,3.71588797,2793.6,2793.1,4.40653]
[1740292771534,0.13627797,2793.6,2793.2,4.40635]
[1740292771718,0.13627797,2793.6,2793.4,0.8263]
[1740292774143,3.71589797,2793.6,2793.4,0.8263]
[1740292774442,3.57973,2793.5,2793.4,0.8263]
[1740292774741,3.57973,2793.5,2793.2,0.70981733]
[1740292774742,3.57999,2793.3,2793.2,1.53611733]
[1740292774947,3.57999,2793.3,2793.2,0.8263]
[1740292775445,3.71666415,2793.3,2793.2,0.8263]
[1740292777837,3.71666415,2793.3,2792.9,0.377631]
[1740292777838,3.58031,2793.1,2792.9,0.8186]
[1740292778141,3.71702972,2793.0,2792.9,0.8186]
[1740292778330,0.13665972,2793.0,2792.9,0.8186]
[1740292781147,0.13665972,2793.0,2792.9,2.16971566]
[1740292781330,0.13665972,2793.0,2792.9,5.75021566]
[1740292781531,3.57986,2793.4,2793.0,3.0]
[1740292781850,3.57981,2793.5,2793.0,0.7941]
[1740292782047,3.57981,2793.5,2793.1,3.0]
[1740292782248,3.57981,2793.5,2793.1,4.17255357]
[1740292782455,3.57951,2793.7,2793.1,7.75272357]
[1740292782619,3.57951,2793.7,2793.1,9.56255357]
[1740292782953,3.57961,2793.6,2793.1,9.56255357]
[1740292783253,3.57973,2793.6,2793.1,13.14273357]
[1740292783438,3.57973,2793.6,2793.2,1.39368336]
[1740292783763,3.57977,2793.5,2793.2,1.39368336]
[1740292784455,7.15943,2793.6,2793.2,1.65792236]
[1740292784750,3.57948,2793.7,2793.2,1.65792236]
[1740292784949,3.57975,2793.5,2793.2,1.65792236]
[1740292785566,3.57964,2793.6,2793.2,1.65792236]
[1740292786358,3.561015,2793.6,2793.2,1.65792236]
[1740292787456,0.7514,2794.4,2793.5,0.7941]
[1740292787658,3.57932,2793.9,2793.5,0.7941]
[1740292788165,3.57932,2793.9,2793.5,4.37381]
[1740292788558,3.57919,2794.0,2793.5,0.7941]
[1740292788760,3.57922,2793.9,2793.5,1.73747406]
[1740292788963,3.57922,2793.9,2793.5,5.31719406]
[1740292789340,3.57901,2794.1,2793.5,5.30777844]
[1740292789553,3.57924,2793.9,2793.5,4.52309406]
[1740292790572,0.13696942,2793.8,2793.5,4.52309406]
[1740292790940,0.13696942,2793.8,2793.6,0.52261967]
[1740292791140,3.57914,2794.0,2793.6,0.52261967]
[1740292791366,0.13696942,2793.7,2793.6,12.49219967]
[1740292791537,3.57897,2794.1,2793.6,12.49219967]
[1740292791733,0.13712063,2793.7,2793.6,12.49219967]
[1740292791972,3.57897,2794.1,2793.6,12.49219967]
[1740292792173,0.13712063,2793.7,2793.6,12.49219967]
[1740292792361,3.57909,2794.0,2793.6,13.28629967]
[1740292792558,0.13712063,2793.7,2793.6,13.28629967]
[1740292792878,3.57909,2794.0,2793.6,13.28629967]
[1740292793078,3.57909,2794.0,2793.6,9.70671967]
[1740292793282,3.71640063,2793.9,2793.6,9.70671967]
[1740292798282,3.57936,2793.8,2793.6,9.70671967]
[1740292798485,3.57948,2793.7,2793.6,9.1841]
[1740292798661,3.71683105,2793.7,2793.6,9.1841]
[1740292799382,3.71683105,2793.7,2793.6,9.90505256]
[1740292799981,3.71683105,2793.7,2793.6,6.90505256]
[1740292802155,3.71683105,2793.7,2793.6,0.72095256]
[1740292803691,4.51813063,2793.7,2793.6,0.72095256]
[1740292803878,3.57973,2793.5,2793.4,5.39]
[1740292804323,3.71703065,2793.5,2793.4,5.39]
[1740292807887,3.58025,2793.1,2793.0,3.8264]
[1740292808115,3.58025,2793.1,2792.8,5.39]
[1740292808116,3.58047,2793.0,2792.7,0.8264]
[1740292808338,0.13719265,2792.9,2792.7,0.8264]
[1740292808618,3.71778265,2792.9,2792.7,0.8264]
[1740292808800,0.13719265,2792.9,2792.7,2.20619567]
[1740292809169,3.58033,2793.1,2792.7,2.20619567]
[1740292809411,0.13719265,2792.8,2792.7,2.20619567]
[1740292809716,7.16015,2793.3,2792.8,3.0]
[1740292809867,3.58006,2793.3,2792.8,3.0]
[1740292810067,7.16014,2793.3,2792.8,3.0]
[1740292810306,3.58006,2793.3,2792.8,6.58062]
[1740292810514,3.58006,2793.3,2792.9,0.8264]
[1740292811415,3.57987,2793.4,2792.9,5.28557157]
[1740292812100,3.57973,2793.6,2793.2,0.8264]
[1740292812396,0.8172,2793.8,2793.2,0.8264]
[1740292812589,3.57958,2793.7,2793.2,0.8264]
[1740292812764,3.5798,2793.5,2793.2,0.8264]
[1740292813401,3.57963,2793.6,2793.2,0.8264]
[1740292813711,3.57958,2793.7,2793.2,0.8264]
[1740292814985,0.8172,2794.1,2793.4,3.57974]
[1740292815167,0.8172,2794.1,2793.3,3.8264]
[1740292815372,3.57929,2793.9,2793.4,3.57985]
[1740292815981,3.57892,2794.2,2793.7,3.57946]
[1740292816189,4.396,2794.3,2793.6,6.5796]
[1740292816688,3.57884,2794.2,2793.6,6.5796]
[1740292816892,3.57897,2794.1,2793.6,7.678171]
[1740292817491,4.396,2794.3,2793.8,0.7612]
[1740292818017,3.57895,2794.2,2793.8,0.7612]
[1740292819225,3.57872,2794.3,2793.8,0.7612]
[1740292819805,3.57858,2794.4,2793.8,4.34049]
[1740292820121,3.57852,2794.5,2793.9,7.91957]
[1740292820283,7.15707,2794.5,2793.9,4.34035]
[1740292820679,0.13734384,2794.4,2793.9,7.91949]
[1740292820896,0.13734384,2794.4,2793.9,4.34034]
[1740292821380,0.13734384,2794.4,2794.0,3.579]
[1740292821610,0.13734384,2794.4,2794.0,4.47922461]
[1740292822576,0.13734384,2794.4,2794.3,6.57871]
[1740292822775,0.13734384,2794.4,2794.3,3.7743]
[1740292823021,3.57831,2794.7,2794.3,3.7743]
[1740292823238,0.13266698,2794.4,2794.3,3.7743]
[1740292823424,3.57831,2794.7,2794.3,5.048626]
[1740292823607,0.13266698,2794.4,2794.3,5.048626]
[1740292824134,3.5784,2794.6,2794.3,5.048626]
[1740292824345,0.13341565,2794.4,2794.3,0.7743]
[1740292824536,3.5784,2794.6,2794.3,0.7743]
[1740292824837,0.8134,2794.6,2794.2,3.0]
[1740292825020,3.57868,2794.4,2794.2,3.0]
[1740292825594,0.1337179,2794.3,2794.2,3.0]
[1740292825796,0.1337179,2794.3,2794.2,4.01025246]
[1740292827238,3.57845,2794.5,2794.2,4.01025246]
[1740292827443,0.1337179,2794.3,2794.2,4.01025246]
[1740292827613,3.57845,2794.5,2794.2,4.01025246]
[1740292827809,0.1337179,2794.3,2794.2,4.01025246]
[1740292828032,7.15699,2794.5,2794.2,3.0]
[1740292828213,0.1337179,2794.3,2794.2,3.0]
[1740292828407,3.57845,2794.5,2794.2,3.0]
[1740292828629,0.1337179,2794.3,2794.2,3.0]
[1740292828940,3.57845,2794.5,2794.2,4.36816146]
[1740292829395,0.1337179,2794.4,2794.2,4.36816146]
[1740292831159,0.1337179,2794.3,2794.2,4.36816146]
[1740292831369,3.57847,2794.5,2794.2,4.36816146]
[1740292831668,0.1337179,2794.4,2794.2,4.36816146]
[1740292831966,3.57833,2794.6,2794.2,4.36816146]
[1740292832166,0.1337179,2794.5,2794.2,4.36816146]
[1740292832462,0.21297777,2794.5,2794.3,1.33371115]
[1740292832664,3.57841,2794.6,2794.4,0.8123]
[1740292832817,3.57831,2794.7,2794.4,0.8123]
[1740292833019,3.57871,2794.3,2794.2,0.8123]
[1740292833334,3.57845,2794.5,2794.2,0.8123]
[1740292833644,3.57859,2794.4,2794.2,0.8123]
[1740292835465,0.21281227,2794.3,2794.2,0.8123]
[1740292837037,4.39139,2794.9,2794.2,0.8123]
[1740292837231,0.21281227,2794.3,2794.2,0.8123]
[1740292837437,3.57859,2794.4,2794.2,0.8123]
[1740292837637,0.21281227,2794.3,2794.2,0.8123]
[1740292837853,3.79152227,2794.3,2794.2,0.8123]
[1740292838381,0.21281227,2794.3,2794.2,0.8123]
[1740292838584,3.57852,2794.5,2794.2,0.8123]
[1740292838791,0.21281227,2794.3,2794.2,0.8123]
[1740292839074,3.57866,2794.4,2794.2,0.8123]
[1740292839278,0.21281227,2794.3,2794.2,0.8123]
[1740292839449,3.57871,2794.3,2794.2,0.8123]
[1740292839838,3.79152227,2794.3,2794.2,0.8123]
[1740292840283,0.21281227,2794.3,2794.2,0.8123]
[1740292840456,0.21281227,2794.3,2794.2,1.790428]
[1740292840775,3.57848,2794.5,2794.2,1.790428]
[1740292841281,0.21281227,2794.4,2794.2,1.790428]
[1740292841580,0.21281227,2794.4,2794.2,5.369258]
[1740292841910,3.57838,2794.6,2794.2,5.369258]
[1740292842081,0.2127691,2794.3,2794.2,5.369258]
[1740292842270,3.57838,2794.6,2794.2,5.369258]
[1740292842469,0.2127691,2794.3,2794.2,5.369258]
[1740292842778,3.57838,2794.6,2794.2,1.790428]
[1740292842988,0.21274031,2794.3,2794.2,1.790428]
[1740292843157,3.57838,2794.6,2794.2,1.790428]
[1740292843345,0.21274031,2794.5,2794.2,1.790428]
[1740292843545,0.21274031,2794.5,2794.3,1.0759318]
[1740292844671,3.57842,2794.6,2794.3,1.0759318]
[1740292844980,0.21274031,2794.4,2794.3,1.0759318]
[1740292845981,3.57842,2794.6,2794.3,1.0759318]
[1740292846149,0.21274031,2794.4,2794.3,1.0759318]
[1740292846550,3.57842,2794.6,2794.3,1.0759318]
[1740292847069,0.21274031,2794.5,2794.3,1.0759318]
[1740292847252,0.21274031,2794.5,2794.4,0.54670118]
[1740292847454,3.5783,2794.7,2794.4,0.54670118]
[1740292847654,0.2127691,2794.5,2794.3,4.6546218]
[1740292847854,3.5783,2794.7,2794.3,1.0759318]
[1740292848171,0.2127691,2794.4,2794.3,1.0759318]
[1740292848370,3.57828,2794.7,2794.3,1.0759318]
[1740292848575,0.2127691,2794.4,2794.3,1.0759318]
[1740292848888,3.57828,2794.7,2794.3,1.0759318]
[1740292849085,0.2127691,2794.4,2794.3,1.0759318]
[1740292849255,7.15659,2794.7,2794.3,1.0759318]
[1740292849456,0.2127691,2794.4,2794.3,1.0759318]
[1740292849658,7.15659,2794.7,2794.3,1.0759318]
[1740292849871,0.2127691,2794.4,2794.3,1.0759318]
[1740292850378,3.57834,2794.6,2794.3,1.0759318]
[1740292850888,0.2127691,2794.5,2794.3,1.0759318]
[1740292851483,3.7912191,2794.5,2794.3,1.0759318]
[1740292852482,0.2127691,2794.5,2794.3,1.0759318]
[1740292852689,3.57834,2794.6,2794.3,1.0759318]
[1740292853095,3.79135984,2794.5,2794.3,1.0759318]
[1740292854593,3.79135984,2794.5,2794.3,1.35026566]
[1740292855194,0.21286984,2794.5,2794.3,1.35026566]
[1740292855491,3.57837,2794.6,2794.4,0.21625657]
[1740292855690,3.57837,2794.6,2794.4,5.39]
[1740292855994,0.21286984,2794.5,2794.4,5.39]
[1740292857052,3.79131984,2794.5,2794.4,5.39]
[1740292859410,0.21286984,2794.5,2794.4,5.39]
[1740292859686,3.57839,2794.6,2794.4,5.39]
[1740292859889,3.57808,2794.8,2794.6,0.7661]
[1740292860102,7.15624,2794.8,2794.6,0.7661]
[1740292860393,3.5782,2794.7,2794.5,0.67402657]
[1740292860551,3.57845,2794.5,2794.4,9.1561]
[1740292860786,7.15663,2794.7,2794.4,9.1561]
[1740292860985,7.15663,2794.7,2794.4,10.20673657]
[1740292861223,3.57834,2794.6,2794.4,10.20673657]
[1740292861423,3.57834,2794.6,2794.4,10.91478995]
[1740292862928,3.57821,2794.7,2794.4,10.91478995]
[1740292864806,3.5783,2794.7,2794.4,10.91478995]
[1740292865021,3.57834,2794.6,2794.5,1.22650556]
[1740292865222,3.5782,2794.7,2794.5,1.22650556]
[1740292865396,0.21284825,2794.6,2794.5,1.22650556]
[1740292865602,3.79116825,2794.6,2794.5,1.22650556]
[1740292866919,3.79116825,2794.6,2794.4,9.86415338]
[1740292868342,3.57845,2794.5,2794.4,9.86415338]
[1740292868539,3.79118825,2794.6,2794.4,9.86415338]
[1740292868840,0.21283386,2794.5,2794.4,9.86415338]
[1740292869695,3.79128386,2794.5,2794.4,9.86415338]
[1740292870943,0.21283386,2794.5,2794.4,10.98559528]
[1740292872847,3.79128386,2794.5,2794.4,10.98559528]
[1740292873145,0.21283386,2794.5,2794.4,10.98559528]
[1740292875426,3.79128386,2794.5,2794.4,10.98559528]
[1740292875832,0.21283386,2794.5,2794.4,10.98559528]
[1740292876547,3.79128386,2794.5,2794.4,10.98559528]
[1740292879134,0.21283386,2794.5,2794.4,10.98559528]
[1740292880255,3.79128386,2794.5,2794.4,10.98559528]
[1740292881053,0.21283386,2794.5,2794.4,10.98559528]
[1740292881220,3.79128386,2794.5,2794.4,10.98559528]
[1740292883267,0.21283386,2794.5,2794.4,10.98559528]
[1740292883459,3.57833,2794.6,2794.4,10.98559528]
[1740292883760,0.21284825,2794.5,2794.4,10.98559528]
[1740292884062,3.57822,2794.7,2794.4,10.98559528]
[1740292884357,0.21284825,2794.5,2794.4,10.98559528]
[1740292884530,3.57822,2794.7,2794.4,10.98559528]
[1740292884738,0.21284825,2794.5,2794.4,10.98559528]
[1740292884958,7.15652,2794.7,2794.4,10.98559528]
[1740292885150,0.21284825,2794.5,2794.4,10.98559528]
[1740292885332,3.57822,2794.7,2794.4,10.98559528]
[1740292885538,0.21284825,2794.5,2794.4,10.98559528]
[1740292885738,3.57822,2794.7,2794.4,10.98559528]
[1740292885942,0.21284825,2794.5,2794.4,10.98559528]
[1740292886162,3.57835,2794.6,2794.4,10.98559528]
[1740292886470,0.21284825,2794.5,2794.4,10.98559528]
[1740292886632,3.57833,2794.6,2794.4,10.98559528]
[1740292886831,0.21284825,2794.5,2794.4,10.98559528]
[1740292890558,3.79129825,2794.5,2794.4,10.98559528]
[1740292890877,0.21284825,2794.5,2794.4,10.98559528]
[1740292891680,3.79129825,2794.5,2794.4,10.98559528]
[1740292891843,0.21284825,2794.5,2794.4,10.98559528]
[1740292894087,3.79129825,2794.5,2794.4,10.98559528]
[1740292894919,0.21284825,2794.5,2794.4,10.98559528]
[1740292898343,3.79129825,2794.5,2794.4,10.98559528]
[1740292899801,0.21284825,2794.5,2794.4,10.98559528]
[1740292901706,3.79129825,2794.5,2794.4,10.98559528]
[1740292903807,0.21284825,2794.5,2794.4,10.98559528]
[1740292904207,3.79129825,2794.5,2794.4,10.98559528]
[1740292905632,0.21284825,2794.5,2794.4,10.98559528]
[1740292906022,3.79129825,2794.5,2794.4,10.98559528]
[1740292910268,3.79129825,2794.5,2794.4,10.21949528]
[1740292917524,0.21284825,2794.5,2794.4,10.21949528]
[1740292917700,3.5782,2794.7,2794.4,10.21949528]
[1740292917877,0.21271142,2794.5,2794.4,9.09805338]
[1740292918072,3.57845,2794.5,2794.4,9.09805338]
[1740292918326,3.57922,2793.9,2793.8,5.39]
[1740292918490,3.57961,2793.6,2793.5,5.39]
[1740292918817,3.57961,2793.6,2793.5,8.39]
[1740292919117,3.57961,2793.6,2793.5,5.39]
[1740292919593,3.57961,2793.6,2793.5,8.39]
[1740292919797,3.79230702,2793.6,2793.5,8.39]
[1740292921422,3.58063,2792.8,2792.7,5.39]
[1740292921719,3.79275834,2792.8,2792.7,5.39]
[1740292922227,6.21618743,2792.8,2792.7,5.39]
[1740292922415,4.61585834,2792.8,2792.7,5.39]
[1740292922617,0.21212834,2792.8,2792.7,5.39]
[1740292922913,4.40317,2793.3,2792.7,10.25986]
[1740292923223,0.21114203,2792.8,2792.7,10.25986]
[1740292923523,0.21114203,2792.8,2792.7,10.80986]
[1740292923730,0.8231,2793.3,2792.8,3.5805]
[1740292923881,0.8231,2793.3,2792.8,4.82149291]
[1740292925179,4.37537,2793.5,2792.9,3.5804]
[1740292925414,4.37537,2793.5,2792.9,8.9704]
[1740292925613,0.21114203,2793.4,2792.9,8.9704]
[1740292926027,0.21114203,2793.4,2792.9,10.6935322]
[1740292926233,0.21114203,2793.4,2792.9,10.6435322]
[1740292927334,0.21114203,2793.4,2792.9,8.9204]
[1740292927625,0.21114203,2793.4,2793.0,3.58037]
[1740292927934,0.21114203,2793.4,2793.2,3.5801]
[1740292928084,4.375,2793.8,2793.2,3.5801]
[1740292928285,0.21107002,2793.3,2793.2,3.5801]
[1740292928508,4.375,2793.8,2793.1,3.5802]
[1740292928752,0.21107002,2793.3,2793.1,3.5802]
[1740292928922,0.4375,2793.7,2793.1,3.5802]
[1740292928923,4.375,2793.8,2793.1,3.5802]
[1740292929246,0.21107002,2793.2,2793.1,3.5802]
[1740292929451,4.375,2793.8,2793.1,3.5802]
[1740292929682,0.7956,2793.8,2793.2,6.58006]
[1740292929951,0.21107002,2793.7,2793.3,3.57999]
[1740292930151,0.7956,2793.8,2793.3,3.57999]
[1740292930315,0.7956,2794.2,2793.6,3.57954]
[1740292930856,4.37448,2794.2,2793.6,3.57954]
[1740292931226,7.9534,2794.2,2793.6,3.57954]
[1740292931631,3.57911,2794.0,2793.5,0.8072]
[1740292932454,5.16982,2794.2,2793.5,4.38687]
[1740292932753,1.59094,2794.2,2793.6,3.57954]
[1740292932915,0.7956,2794.2,2793.6,3.57954]
[1740292933618,4.37451,2794.2,2793.5,4.38684]
[1740292933816,3.57907,2794.1,2793.5,4.38684]
[1740292934043,0.7956,2793.8,2793.4,5.39]
[1740292934247,4.37499,2793.8,2793.4,5.39]
[1740292934743,0.7956,2793.8,2793.4,5.39]
[1740292935042,0.7956,2793.8,2793.4,7.6673846]
[1740292937227,3.5791,2794.0,2793.4,7.6673846]
[1740292937228,0.8023,2794.0,2793.5,3.57972]
[1740292937658,0.8023,2794.0,2793.6,0.8137]
[1740292937857,0.8023,2794.6,2793.8,3.57934]
[1740292938154,3.57866,2794.4,2793.7,5.94]
[1740292938458,4.3812,2794.2,2793.7,5.94]
[1740292939265,0.8023,2794.2,2793.7,9.51947]
[1740292940357,0.8023,2794.2,2793.8,3.57932]
[1740292940575,0.21164608,2794.1,2793.8,3.57932]
[1740292940864,0.21164608,2794.1,2793.7,9.51947]
[1740292941200,0.21164608,2794.1,2793.7,10.93697902]
[1740292942073,0.21164608,2794.1,2793.7,7.35750902]
[1740292942522,0.21164608,2794.1,2794.0,0.71411419]
[1740292947897,3.79060608,2794.1,2794.0,0.71411419]
[1740292948229,3.79060608,2794.1,2793.8,5.39]
[1740292949132,3.5791,2794.0,2793.8,5.39]
[1740292949285,3.57922,2793.9,2793.8,5.39]
[1740292949487,4.36642,2793.9,2793.8,5.39]
[1740292949794,4.57847645,2793.9,2793.8,5.39]
[1740292952732,0.7872,2793.8,2793.2,5.39]
[1740292952914,3.57996,2793.4,2793.2,5.39]
[1740292953228,7.15991,2793.4,2793.2,5.39]
[1740292953386,0.21182608,2793.3,2793.2,8.39]
[1740292953583,0.21182608,2793.3,2793.2,9.12226511]
[1740292953993,3.79181608,2793.3,2793.2,9.12226511]
[1740292955584,0.21182608,2793.3,2793.2,9.12226511]
[1740292955884,3.57978,2793.5,2793.2,9.12226511]
[1740292956390,0.21182608,2793.4,2793.2,9.12226511]
[1740292958376,3.57966,2793.6,2793.2,9.12226511]
[1740292958580,0.21182608,2793.3,2793.2,9.12226511]
[1740292958785,3.57966,2793.6,2793.2,9.12226511]
[1740292958985,0.21182608,2793.3,2793.2,9.12226511]
[1740292959303,3.57966,2793.6,2793.2,9.12226511]
[1740292959454,0.21182608,2793.3,2793.2,9.12226511]
[1740292959654,3.57955,2793.7,2793.2,9.12226511]
[1740292959883,0.21182608,2793.6,2793.2,9.12226511]
[1740292960074,3.79145608,2793.6,2793.2,9.12226511]
[1740292960492,3.79145608,2793.6,2793.2,8.39]
[1740292960692,0.21182608,2793.6,2793.3,0.7778]
[1740292960896,0.21182608,2793.6,2793.5,3.57973]
[1740292961062,3.57886,2794.2,2793.5,4.373469]
[1740292961263,3.57909,2794.0,2793.5,8.96973]
[1740292961693,0.21132928,2793.9,2793.5,8.96973]
[1740292961907,3.57899,2794.1,2793.6,3.57957]
[1740292962065,7.15784,2794.2,2793.7,0.8325]
[1740292962264,0.21132928,2793.8,2793.7,0.8325]
[1740292962462,4.35546,2794.3,2793.8,3.57928]
[1740292962699,3.57884,2794.2,2793.7,4.41197]
[1740292963097,0.7767,2794.3,2793.8,8.96931]
[1740292963277,4.35547,2794.3,2793.8,8.96931]
[1740292963885,3.57877,2794.3,2793.8,8.96931]
[1740292964805,3.57877,2794.3,2793.8,10.30745]
[1740292965804,7.15734,2794.4,2793.8,10.30745]
[1740292966016,3.57842,2794.6,2794.0,4.41159]
[1740292966202,3.57842,2794.6,2794.1,3.57886]
[1740292966203,3.57839,2794.6,2794.1,3.57886]
[1740292966514,3.57839,2794.6,2794.1,8.96886]
[1740292966810,0.8056,2794.7,2794.1,8.96886]
[1740292967021,3.57814,2794.8,2794.2,3.57884]
[1740292967326,3.57824,2794.7,2794.2,7.1576]
[1740292967518,3.57833,2794.6,2794.2,3.57876]
[1740292967698,3.57833,2794.6,2794.1,10.37745697]
[1740292967905,3.57833,2794.6,2794.2,0.52978192]
[1740292968137,7.15674,2794.6,2794.2,0.52978192]
[1740292968291,3.57847,2794.5,2794.2,0.52978192]
[1740292968913,3.57859,2794.4,2794.2,0.52978192]
[1740292969112,3.57884,2794.2,2794.1,5.39]
[1740292969673,4.38444,2794.2,2794.1,5.39]
[1740292970503,4.59697148,2794.2,2794.1,5.39]
[1740292970892,5.80059954,2794.2,2794.1,5.39]
[1740292971576,3.57938,2793.8,2793.4,5.39]
[1740292972178,0.21253148,2793.7,2793.4,5.39]
[1740292972378,7.15884,2793.8,2793.4,5.39]
[1740292972612,0.21253148,2793.6,2793.4,5.39]
[1740292972924,7.15884,2793.8,2793.4,5.39]
[1740292973225,0.21253148,2793.5,2793.4,8.39]
[1740292973421,3.57954,2793.7,2793.4,8.39]
[1740292973422,3.57968,2793.6,2793.4,8.39]
[1740292973746,0.21253148,2793.5,2793.4,8.39]
[1740292974345,3.79226148,2793.5,2793.4,5.39]
[1740292975304,3.57973,2793.5,2793.4,5.39]
[1740292975647,3.79226148,2793.5,2793.4,5.39]
[1740292976743,0.21253148,2793.5,2793.4,6.2033]
[1740292977044,3.57929,2793.9,2793.4,10.761448]
[1740292977419,0.21253148,2793.8,2793.4,7.181618]
[1740292977634,3.57955,2793.7,2793.4,7.181618]
[1740292978353,0.21253148,2793.6,2793.4,7.181618]
[1740292979743,3.57924,2793.9,2793.4,7.181618]
[1740292979940,0.21253148,2793.5,2793.4,6.2033]
[1740292980116,3.57924,2793.9,2793.4,6.2033]
[1740292980316,0.21253148,2793.5,2793.4,6.2033]
[1740292980625,3.57936,2793.8,2793.4,6.2033]
[1740292980821,3.57918,2794.0,2793.4,9.78313]
[1740292981026,0.21253148,2793.7,2793.4,11.119435]
[1740292981244,3.57918,2794.0,2793.4,11.119435]
[1740292981555,0.21253148,2793.9,2793.4,11.119435]
[1740292982321,3.79176148,2793.9,2793.4,11.119435]
[1740292985339,3.79176148,2793.9,2793.4,7.539605]
[1740292985544,1.00973148,2793.9,2793.4,6.2033]
[1740292985855,3.57967,2793.6,2793.4,5.39]
[1740292986355,3.57967,2793.6,2793.5,0.73240849]
[1740292986767,4.37693,2793.5,2793.4,5.39]
[1740292987734,4.37669,2793.7,2793.4,5.39]
[1740292988551,3.57948,2793.7,2793.4,5.39]
[1740292989054,3.57973,2793.5,2793.4,5.39]
[1740292989259,4.37693,2793.5,2793.4,5.39]
[1740292989562,3.57993,2793.4,2793.0,3.0]
[1740292990235,3.57993,2793.4,2793.0,3.26640247]
[1740292991058,7.15987,2793.4,2793.0,3.26640247]
[1740292991264,3.57993,2793.4,2793.0,3.26640247]
[1740292992264,3.57993,2793.4,2793.0,3.0]
[1740292992265,3.58006,2793.3,2793.0,3.0]
[1740292992657,3.58018,2793.2,2792.9,5.39]
[1740292993865,0.7972,2793.5,2792.9,5.39]
[1740292994042,3.58037,2793.0,2792.9,5.39]
[1740292994442,3.58056,2792.9,2792.7,5.39]
[1740292995167,3.58063,2792.8,2792.7,5.39]
[1740292996666,4.376463,2792.8,2792.7,5.39]
[1740292998269,0.795833,2792.8,2792.3,3.0]
[1740292998474,0.7972,2793.0,2792.3,3.0]
[1740292998777,3.58025,2793.1,2792.5,7.38292]
[1740292998980,3.58037,2793.0,2792.5,3.8019]
[1740292999477,3.58052,2792.9,2792.5,3.8019]
[1740293000607,0.21066666,2792.8,2792.5,3.8019]
[1740293001412,3.5804,2793.0,2792.5,3.8019]
[1740293001707,0.21066666,2792.7,2792.5,3.8019]
[1740293001894,3.5804,2793.0,2792.5,3.8019]
[1740293002098,0.21066666,2792.6,2792.5,3.8019]
[1740293002409,3.57977,2793.5,2792.9,3.58043]
[1740293002714,3.57975,2793.5,2793.0,0.7903]
[1740293002908,7.1596,2793.5,2793.0,0.7903]
[1740293003214,3.57975,2793.5,2793.0,0.7903]
[1740293003409,3.57992,2793.4,2793.0,0.7903]
[1740293003707,0.7756,2793.6,2793.0,4.37065]
[1740293003912,4.35532,2793.6,2793.0,4.37065]
[1740293004783,0.7756,2793.6,2793.0,0.7903]
[1740293004977,3.57957,2793.7,2793.1,3.58017]
[1740293005673,4.37772,2793.8,2793.1,4.31136836]
[1740293005994,4.37772,2793.8,2793.2,3.58009]
[1740293006197,3.57918,2794.0,2793.4,0.8156]
[1740293006577,3.5793,2793.9,2793.4,0.8156]
[1740293006777,3.57942,2793.8,2793.4,0.8156]
[1740293007813,3.57961,2793.6,2793.4,0.8156]
[1740293009934,0.7983,2793.9,2793.2,5.39]
[1740293010132,3.57999,2793.3,2792.9,9.7156]
[1740293010289,3.58037,2793.0,2792.9,3.8156]
[1740293010691,3.58011,2793.3,2792.9,3.8156]
[1740293010890,3.57969,2793.6,2792.9,4.07959551]
[1740293011090,7.15941,2793.6,2793.0,4.88530755]
[1740293011330,3.57993,2793.4,2793.0,1.30501755]
[1740293011490,3.57983,2793.5,2792.9,4.07959551]
[1740293011828,0.7983,2793.7,2792.9,4.07959551]
[1740293011829,3.57942,2793.8,2793.2,3.58011]
[1740293011992,4.37752,2793.9,2793.3,0.8156]
[1740293012325,3.57969,2793.6,2793.3,0.8156]
[1740293012825,3.57968,2793.6,2793.3,0.8156]
[1740293012987,3.57978,2793.5,2793.3,0.8156]
[1740293013527,3.57986,2793.4,2793.3,0.8156]
[1740293014717,3.57986,2793.4,2792.9,3.26399551]
[1740293014718,3.58021,2793.2,2793.1,0.8156]
[1740293015553,3.79156088,2793.2,2793.1,0.8156]
[1740293016155,3.79156088,2793.2,2792.9,3.26399551]
[1740293016156,3.58025,2793.1,2793.0,5.39]
[1740293016336,0.21135088,2793.2,2793.0,5.39]
[1740293016509,3.58023,2793.2,2793.0,5.39]
[1740293016713,0.21135088,2793.1,2793.0,5.39]
[1740293020727,3.58009,2793.3,2793.0,5.39]
[1740293020927,0.21135088,2793.2,2793.0,5.39]
[1740293024482,3.79147088,2793.2,2793.0,5.39]
[1740293026288,0.73494087,2793.1,2793.0,5.39]
[1740293026787,0.94629175,2793.1,2793.0,5.39]
[1740293026991,4.52654175,2793.1,2793.0,5.39]
[1740293031101,6.14740793,2793.1,2793.0,5.39]
[1740293034007,3.58052,2792.9,2792.3,5.39]
[1740293034490,3.58114,2792.4,2792.3,5.39]
[1740293034894,3.58114,2792.4,2792.3,5.65300362]
[1740293035199,3.79205874,2792.4,2792.3,5.39]
[1740293037805,4.51304883,2792.4,2792.3,5.39]
[1740293039303,0.93190883,2792.4,2792.3,12.58535]
[1740293039778,0.72099009,2792.4,2792.3,9.00408]
[1740293040707,0.93119566,2792.4,2792.3,9.00408]